﻿Department family,Entity,Date,Expense type,Expense area,Supplier,Transaction number,Amount,Description,Supplier Postcode
Balance Sheet,L2 Current Assets,03-12-21,Finished Processed Goods,Stock & Work In Progress,Aah Pharmaceuticals Ltd,69807760Y,"34,518.90 ",Pharmaceutical purchase,CV2 2ZG
Balance Sheet,L2 Current Assets,03-12-21,Finished Processed Goods,Stock & Work In Progress,Aah Pharmaceuticals Ltd,69939153K,"55,230.24 ",Pharmaceutical purchase,CV2 2ZG
Balance Sheet,L2 Current Assets,17-12-21,Finished Processed Goods,Stock & Work In Progress,Aah Pharmaceuticals Ltd,70294917Q,"29,876.40 ",Pharmaceutical purchase,CV2 2ZG
Balance Sheet,L2 Current Assets,17-12-21,Finished Processed Goods,Stock & Work In Progress,Aah Pharmaceuticals Ltd,70427524C,"56,433.29 ",Pharmaceutical purchase,CV2 2ZG
Balance Sheet,L2 Current Assets,24-12-21,Finished Processed Goods,Stock & Work In Progress,Aah Pharmaceuticals Ltd,70816768A,"55,230.24 ",Pharmaceutical purchase,CV2 2ZG
Pmu,Pmu,17-12-21,Drugs,Pmu,Active Pharma Supplies Ltd,3834,"49,200.00 ",Pharmaceutical purchase,PR25 2ZJ
Pmu,Pmu,17-12-21,Drugs,Pmu,Alliance Healthcare Distribution Ltd,F18204125,"74,950.55 ",Pharmaceutical purchase,KT9 1SN
Pmu,Pmu,10-12-21,Drugs,Pmu,Alliance Healthcare Distribution Ltd,F1BA54928,"85,321.20 ",Pharmaceutical purchase,KT9 1SN
Pmu,Pmu,24-12-21,Drugs,Pmu,Alliance Healthcare Distribution Ltd,F1C251377,"25,401.60 ",Pharmaceutical purchase,KT9 1SN
Pmu,Pmu,24-12-21,Drugs,Pmu,Alliance Healthcare Distribution Ltd,F1C251380,"165,302.16 ",Pharmaceutical purchase,KT9 1SN
Pmu,Pmu,24-12-21,Drugs,Pmu,Alliance Healthcare Distribution Ltd,F1C252550,"74,628.00 ",Pharmaceutical purchase,KT9 1SN
Balance Sheet,L2 Current Assets,03-12-21,Finished Processed Goods,Stock & Work In Progress,Alloga Uk Ltd,SIN103312587,"27,000.00 ",Pharmaceutical purchase,DE55 2FH
Corporate Services,Sevice Performance,24-12-21,Rent,Properties,Assura Medical Centres Ltd,LINV43452,"29,100.00 ",Todmorden Health centre Rent 25 / 12 / 2021 24 / 03 / 2022,WA4 6HL
CHS Estates,L2 Estates,17-12-21,Contract : Other External,Medical Physics,B Braun Sterilog (Yorkshire) Ltd,328746493,"116,564.35 ",DECONTAMINATION SERVICES FOR THE SURGICAL DIVISION,S35 2PW
Balance Sheet,L2 Current Assets,03-12-21,Finished Processed Goods,Stock & Work In Progress,Bayer Plc,824C368337,"29,654.82 ",Pharmaceutical purchase,RG2 6AD
Balance Sheet,L2 Current Assets,03-12-21,Finished Processed Goods,Stock & Work In Progress,Bayer Plc,824C380188,"27,373.68 ",Pharmaceutical purchase,RG2 6AD
Balance Sheet,L2 Current Assets,03-12-21,Finished Processed Goods,Stock & Work In Progress,Bayer Plc,824C380599,"29,654.82 ",Pharmaceutical purchase,RG2 6AD
Balance Sheet,L2 Current Assets,10-12-21,Finished Processed Goods,Stock & Work In Progress,Bayer Plc,824C381217,"27,373.68 ",Pharmaceutical purchase,RG2 6AD
Balance Sheet,L2 Current Assets,10-12-21,Finished Processed Goods,Stock & Work In Progress,Bayer Plc,824C381429,"29,654.82 ",Pharmaceutical purchase,RG2 6AD
Balance Sheet,L2 Current Assets,10-12-21,Finished Processed Goods,Stock & Work In Progress,Bayer Plc,824C383320,"29,654.82 ",Pharmaceutical purchase,RG2 6AD
Balance Sheet,L2 Current Assets,17-12-21,Finished Processed Goods,Stock & Work In Progress,Bayer Plc,824C383781,"27,373.68 ",Pharmaceutical purchase,RG2 6AD
Balance Sheet,L2 Current Assets,17-12-21,Finished Processed Goods,Stock & Work In Progress,Bayer Plc,824C384191,"29,654.82 ",Pharmaceutical purchase,RG2 6AD
Balance Sheet,L2 Current Assets,24-12-21,Finished Processed Goods,Stock & Work In Progress,Bayer Plc,824C384849,"27,373.68 ",Pharmaceutical purchase,RG2 6AD
Balance Sheet,L2 Current Assets,24-12-21,Finished Processed Goods,Stock & Work In Progress,Bayer Plc,824C385056,"29,654.82 ",Pharmaceutical purchase,RG2 6AD
Balance Sheet,L2 Current Assets,24-12-21,Finished Processed Goods,Stock & Work In Progress,Bayer Plc,824C385713,"27,373.68 ",Pharmaceutical purchase,RG2 6AD
Balance Sheet,L2 Current Assets,24-12-21,Finished Processed Goods,Stock & Work In Progress,Bayer Plc,824C386098,"29,654.82 ",Pharmaceutical purchase,RG2 6AD
Surgery & Anaesthetics,Surgical Divisional Support,24-12-21,Contractual Clinical Services,Independent Sector,Bmi Healthcare Ltd,S5712SEP21,"148,048.60 ",Provision of Elective Activity ,SK3 0XN
Balance Sheet,L2 Current Assets,24-12-21,Finished Processed Goods,Stock & Work In Progress,Bristol Myers Squibb Pharmaceuticals Ltd,100675249,"36,101.52 ",Pharmaceutical purchase,CH4 9QW
Surgery & Anaesthetics,Surgical Divisional Support,29-12-21,Healthcare From Commercial Sector,Support Services,Calderdale And Huddersfield Orthopaedic Partnership Llp,2021-07,"124,683.97 ",Provision of Orthopaedic and/or speciality healthcare services ,LS8 2JH
Surgery & Anaesthetics,Surgical Divisional Support,06-12-21,Healthcare From Commercial Sector,Support Services,Calderdale And Huddersfield Orthopaedic Partnership Llp,INV-0005,"139,815.85 ",Provision of Orthopaedic and/or speciality healthcare services ,LS8 2JH
Corporate Services,Sevice Performance,21-12-21,Contract : Other External,Pfi,Calderdale Hospital Spc Ltd,3588,"2,805,708.55 ",PFI contract monthly payment,M20 2YY
Corporate Services,Sevice Performance,10-12-21,External Contracts : Other Hotel Services,Pfi,Calderdale Hospital Spc Ltd,3589,"44,530.57 ",Additional variations to PFI contract,M20 2YY
Corporate Services,Sevice Performance,10-12-21,External Contracts : Domestics,Pfi,Calderdale Hospital Spc Ltd,3590,"33,987.00 ",Additional variations to PFI contract - Domestic services COVID-19,M20 2YY
Corporate Services,Sevice Performance,10-12-21,Legal Fees,Pfi,Calderdale Hospital Spc Ltd,3593,"42,649.73 ",Works to Aseptic Suite Calderdale Royal Hospital,M20 2YY
Corporate Services,Sevice Performance,17-12-21,Minor Works,Pfi,Calderdale Hospital Spc Ltd,3597,"486,160.67 ",New Works MRI / Mammography Calderdale Royal Hospital,M20 2YY
Corporate Services,Sevice Performance,17-12-21,Minor Works,Pfi,Calderdale Hospital Spc Ltd,3599,"178,120.62 ",New Works Calderdale Royal Hospital,M20 2YY
Corporate Services,Sevice Performance,03-12-21,Rates,Properties,Calderdale Metropolitan Borough Council,25202191017619,"73,387.00 ",Business Rates for Calderdale Royal Hospital,HX1 1TP
Corporate Services,Finance,02-12-21,Professional Fees,Finance,Candesic Ltd,H/21/11,"59,400.00 ",Consulting fees for growth plan for Huddersfield Pharmacy Specials,SW1Y 4TE
Corporate Services,Corporate Services,03-12-21,Professional Fees,Corporate Services,Care Quality Commission,42914201,"270,242.00 ",Annual Fee in 10 installments,WF3 1WE
Health Informatics,Corporate And Operations,24-12-21,Computer Software / License  Fees,Business Support,Catalyst BI Limited,INV4304,"27,673.20 ",VIZLIB ENTERPRISE COLLABORATION PACKAGE.    Renewal of 500 users. Additional 300 users to co-term with existing subscription.  Period: 29/11/2021 - 28/03/2022.  VizLib Package: Enterprise Collaboration. ,LS23 6LP
Health Informatics,Modernisation Programme,03-12-21,Computer Software / License  Fees,Modernisation Programme,Cerner Ltd,101990316,"63,112.80 ",Cerner - Table 12: RHO Recurring Charges. Monthly  commencing from the Effective Date and continuing until the end of the Term (Jan - Dec 2021) monthly £52 594  - rwyf400038543,W2 1AF
Health Informatics,Modernisation Programme,03-12-21,Computer Software / License  Fees,Modernisation Programme,Cerner Ltd,101990395,"38,400.00 ",Cerner - CCN 053 - Remote Hosting charges £32 000 per month - to be matched to last years order RWYF400053037,W2 1AF
Health Informatics,Modernisation Programme,24-12-21,Computer Software / License  Fees,Modernisation Programme,Cerner Ltd,102005032,"63,112.80 ",Cerner - Table 12: RHO Recurring Charges. Monthly  commencing from the Effective Date and continuing until the end of the Term (Jan - Dec 2021) monthly £52 594  - rwyf400038543,W2 1AF
Health Informatics,Modernisation Programme,24-12-21,Computer Software / License  Fees,Modernisation Programme,Cerner Ltd,102005131,"38,400.00 ",Cerner - CCN 053 - Remote Hosting charges £32 000 per month - to be matched to last years order RWYF400053037,W2 1AF
Families & Specialist Services,Radiology,17-12-21,Med Surg Eqpt Leasing,Mri,Chg-Meridian UK Limited,7067540,"51,092.27 ",LP00244 7 year Lease- rLP00244. Lease Schedule No 6006769.Master lease Agreement number 307769. MRI Ingenia 1.5T- £657 429.90 exc VAT via NHS Supply Chain. Quote no 02488334  MID 1017 MRI 15.FROM 12/09/2016 TO 11/09/2023,TW20 9AB
Central & Technical,Tech Accounting,17-12-21,Laboratory Test Kits,Tech Accounting,Chrystal Consulting Ltd,59527,"417,343.79 ",Managed Service Contract Qiagen to cover the cost of COVID Testing ,M22 5HQ
Health Informatics,Corporate And Operations,17-12-21,Computer Maintenance,It Support,Cisilion Ltd,INVUK0012191,"47,330.40",Device: C9300-48UXM-A Smart Maintenance term 36 months - 65 devices at £728.16 each for contract termSite - Calderdale Royal Hospital. From 1/12/21 to 30/11/24,KT22 9UT
Health Informatics,Corporate And Operations,17-12-21,Computer Maintenance,It Support,Cisilion Ltd,INVUK0012191,"21,358.80",Site Calderdale Royal HospitalSMART Maintenance - 8x5xNBD h/w replacement only30 devices at £711.96 each for 36 months From 1/12/21 to 30/11/24,KT22 9UT
Health Informatics,Corporate And Operations,24-12-21,Computer Maintenance,It Support,Cisilion Ltd,INVUK0012291,"25,773.65",SMART-MAINT-HWO-BRONZESMART Maintenance - 8x5xNBD h/w replacement only.26/11/21 - 25/11/22,KT22 9UT
Balance Sheet,Fixed Assets,24-12-21,Additions - Assets Under Construction,Capital (His),Civica Uk Ltd,C/HA230435,"38,765.18 ",SOFTWARE/HARDWARE Extraction and Data Migration of the Windip data and image files.Quote CAL&HUD-TG21_02_08,DY1 4TD
Balance Sheet,Fixed Assets,24-12-21,Additions - Assets Under Construction,Capital (Estates),Clifford Cooper & Sons Ltd,62358,"81,128.29 ",LEARNING CENTRE REPROVISION - TO SUB-BASEMENT FLOOR AS PER TENDER Tender ,CM20 9GY
Corporate Services,Quality,10-12-21,Miscellaneous Expenditure,Quality,DAC Beachcroft LLP,01-10039046,"56,400.00 ",FY21/22:Solicitors Fees:  £50 000Consel's Fees:  £117 600Expert Fees/Disbursements;  £15 250,BS1 9HS
CHS Estates,L2 Estates,03-12-21,Engineering  Contracts,Estates Operations,Designa (U K) Ltd,522661,"37,622.40 ",Annual Maintenance for Huddersfield Royal and Acre Mill car park equipment for period 13th Nov 2021 to 12th Nov 2022 as per quote ,TW16 7DY
CHS Estates,L2 Estates,03-12-21,Electricity,Estates Operations,EDF Energy Customers Ltd,000010897424,"162,544.90 ",Mains Electric for Calderdale Royal Hospital ,W1T 4EZ
CHS Estates,L2 Estates,29-12-21,Electricity,Estates Operations,EDF Energy Customers Ltd,000011064007,"159,979.54 ",Mains Electric for Calderdale Royal Hospital ,W1T 4EZ
CHS Facilities,L2 Facilities,24-12-21,External Contracts : Laundry,Laundry,Elis UK Limited,SN3439409,"93,670.92 ",laundry contract for hired linen for Calderdale & Huddersfield. ,RG24 8JP
Health Informatics,Service Delivery,29-12-21,Computer Software / License  Fees,Service Delivery,European Electronique Ltd,0001584875,"122,400.00 ",BARRACUDA CLOUD TO CLOUD BACKUP 4267 LICENCES @ £23.60 / MONTH FOR THE FULL 3 YEARS CONTRACT PERIOD NOVEMBER 2021- NOVMEBER 2024 COOLSPIRiT PROFESSIONAL SERVICES & PROJECT MANAGEMENT PACKAGE,OX29 4TT
Balance Sheet,Fixed Assets,10-12-21,Additions - Assets Under Construction,Capital (Surgical),Ge Medical Systems Ltd,664528,"52,028.84 ",CARESCAPE ONE® device PARAMETERS & frame Bundle,HP8 4SP
Balance Sheet,Fixed Assets,03-12-21,Additions - Assets Under Construction,Capital (Estates),H.Jenkinson & Company Ltd,SINV00921356,"29,457.32 ",LEARNING CENTRE - SUB-BASEMENT FLOOR - SUPPLY OF FURNITURE AS AGREED ,L34 9JR
Balance Sheet,Fixed Assets,24-12-21,Additions - Assets Under Construction,Capital (Surgical),Haag-Streit Uk Ltd,SI30027468,"94,141.20 ",BP900 LED slit lamp  RM02 IM600 (BP)  HSM600 (large)  silver headrest(with lower part)  table fittings & fixedbackground. BP900 LED slit lamp withstandard accessoires  on HSM600 table(small 860 x 440mm),CM20 2TT
Health Informatics,Modernisation Programme,24-12-21,Computer Maintenance,Modernisation Programme,Healthcare Gateway Ltd,CN-0936,"-59,570.26 ",HCGDCR1  MIG Detailed Care Record for NHS Greater Huddersfield CCG for 243 000 Patients.   Invoice period: from 28.06.2020 to 27.06.2021.  Quote number QU-0705.   Account number 10999 ,LS19 7BY
Health Informatics,Modernisation Programme,24-12-21,Computer Maintenance,Modernisation Programme,Healthcare Gateway Ltd,INV-0935,"86,295.45 ",Detailed Care Record forNHS Greater Huddersfield CCG for243 000 Patients GP Specialist Dataset Service(Supportive Care HGLEIS36) Detailed Care Record forNHS Calderdale CCG for 213 000 Patients GP Specialist Dataset Service(Supportive Care HGLEIS36) Invoice Period: 28.06.2021 to 27.06.2022 Calderdale Council dataset Annual service chargeInvoice Period 08.12.2021 - 27.06.2022,LS19 7BY
Balance Sheet,Fixed Assets,24-12-21,Additions - Assets Under Construction,Capital (Corporate),IBI Group (UK) Ltd,10007269,"25,735.50 ",RECONFIGURATION OF HOSPITAL SERVICES,M20 2EY
Balance Sheet,Fixed Assets,24-12-21,Additions - Assets Under Construction,Capital (Estates),Integrated Health Projects,21040003_5,"101,591.36 ",Learning Centre Demolition works 2020/21,WD24 4WW
Balance Sheet,Fixed Assets,24-12-21,Additions - Assets Under Construction,Capital (Estates),Integrated Health Projects,21040003_6,"93,167.63 ",Learning Centre Demolition works 2020/21,WD24 4WW
Balance Sheet,Fixed Assets,10-12-21,Additions - Assets Under Construction,Capital (Corporate),Integrated Health Projects,21120003,"107,167.18 ",HRI - EMERGENCY DEPARTMENT DEVELOPMENT - ENABLING WORKS - GMP STAGE 3 COSTS ISSUED ON THE 18/10/2021 ,WD24 4WW
Balance Sheet,Fixed Assets,24-12-21,Additions - Assets Under Construction,Capital (Corporate),Integrated Health Projects,21120016,"261,009.08 ",ED - RECONFIGURATION - HG0043-HRI (EMERGENCY DEPARTMENT),WD24 4WW
Balance Sheet,L2 Current Assets,24-12-21,Finished Processed Goods,Stock & Work In Progress,Janssen-Cilag Ltd,930776036,"40,435.20 ",Pharmaceutical purchase,HP12 4EG
Balance Sheet,L2 Current Assets,24-12-21,Finished Processed Goods,Stock & Work In Progress,Janssen-Cilag Ltd,930784422,"40,435.20 ",Pharmaceutical purchase,HP12 4EG
Balance Sheet,L2 Current Assets,24-12-21,Finished Processed Goods,Stock & Work In Progress,Janssen-Cilag Ltd,930790037,"40,435.20 ",Pharmaceutical purchase,HP12 4EG
Balance Sheet,L2 Current Assets,24-12-21,Finished Processed Goods,Stock & Work In Progress,Janssen-Cilag Ltd,930795558,"40,435.20 ",Pharmaceutical purchase,HP12 4EG
Balance Sheet,L2 Current Assets,24-12-21,Finished Processed Goods,Stock & Work In Progress,Janssen-Cilag Ltd,930799938,"40,435.20 ",Pharmaceutical purchase,HP12 4EG
Families & Specialist Services,Radiology,08-12-21,Med Surg Eqpt Hire,Ct,Medispace B.V.,201762,"30,025.92 ",Rental of a CM050 CT scanbox with Canon Prime 160 slice CT scanner plus 2 radiographers,2712 PJ  The Netherlands
Families & Specialist Services,Radiology,22-12-21,Med Surg Eqpt Hire,Ct,Medispace B.V.,201782,"30,025.92 ",Rental of a CM050 CT scanbox with Canon Prime 160 slice CT scanner plus 2 radiographers,2712 PJ  The Netherlands
Medical Division,Medical Specialities,10-12-21,Pacemakers,Cardiology,Medtronic Ltd,1204779890,"6,720.00 ",Quote number: Q-3050184-1 W1TR04 Percepta CRT-P MRI System,WD18 8WW
Medical Division,Medical Specialities,10-12-21,Pacemakers,Cardiology,Medtronic Ltd,1204779890,"5,796.00 ",Quote number: Q-3050184-1 W4TR06 Solara CRTP MRI Quad system,WD18 8WW
Medical Division,Medical Specialities,10-12-21,Pacemakers,Cardiology,Medtronic Ltd,1204779890,"26,600.00 ",Quote number: Q-3050184-1 W3DR01 Azure S DR MRI WL system ,WD18 8WW
Medical Division,Medical Specialities,10-12-21,Pacemakers,Cardiology,Medtronic Ltd,1204779890,"4,800.00 ",Quote number: Q-3050184-1 AZURE S SR MRI WL system ,WD18 8WW
Medical Division,Medical Specialities,10-12-21,Pacemakers,Cardiology,Medtronic Ltd,1204779890,"8,715.00 ",Quote number: Q-3050184-1 LINQ AND MY CARELINK,WD18 8WW
Families & Specialist Services,Pathology,15-12-21,Blood Products,Blood Sciences,NHS Blood And Transplant,7001001,"76,048.76 ",MONTHLY CONTRACT CHARGE BLOOD & COMPONENTS,LS15 7TW
Families & Specialist Services,Pathology,15-12-21,Blood Products,Blood Sciences,NHS Blood And Transplant,7001002,"31,728.55 ",MONTHLY CONTRACT CHARGE BLOOD & COMPONENTS,LS15 7TW
Corporate Services,Quality,15-12-21,Clinical Negligence,Quality,NHS Resolution,SICX407496,"692,288.04",Clinical Negligence provision,SW1W 9SZ
Families & Specialist Services,Womens,15-12-21,Clinical Negligence,Womens Management,NHS Resolution,SICX407496,"792,324.04",Clinical Negligence provision,SW1W 9SZ
Corporate Services,Quality,15-12-21,Insurance Costs,Quality,NHS Resolution,SICX407496,"18,480.67",Clinical Negligence provision,SW1W 9SZ
Corporate Services,Quality,15-12-21,Insurance Costs,Quality,NHS Resolution,SICX407496,"3,112.08",Clinical Negligence provision,SW1W 9SZ
Families & Specialist Services,Womens,15-12-21,Clinical Negligence,Womens Management,NHS Resolution,SICX407496,"79,232.42",Clinical Negligence provision,SW1W 9SZ
CHS Balance Sheet,Current Liabilities,03-12-21,Non- NHS  Trade Creditors < One Year,Other Creditors,NHS Supply Chain,1122159150,"237,147.56 ",Goods delivered week ending 26/11/2021,DE55 4QJ
CHS Balance Sheet,Current Liabilities,10-12-21,Non- NHS  Trade Creditors < One Year,Other Creditors,NHS Supply Chain,1122164016,"229,004.97 ",Goods delivered week ending 03/12/2021,DE55 4QJ
CHS Balance Sheet,Current Liabilities,24-12-21,Non- NHS  Trade Creditors < One Year,Other Creditors,NHS Supply Chain,1122168523,"217,547.38 ",Goods delivered week ending 10/12/2021,DE55 4QJ
CHS Balance Sheet,Current Liabilities,24-12-21,Non- NHS  Trade Creditors < One Year,Other Creditors,NHS Supply Chain,1122176843,"229,323.79 ",Goods delivered week ending 17/12/2021,DE55 4QJ
Corporate Services,Finance,24-12-21,Fm Computer Contracts,Finance,Northumbria Healthcare NHS Foundation Trust,7510411586,"219,734.00 ",Financial software system charges,NE27 0QJ
Balance Sheet,L2 Current Assets,03-12-21,Finished Processed Goods,Stock & Work In Progress,Novartis Pharmaceuticals Uk Ltd,92521973,"26,712.00 ",Pharmaceutical purchase,GU16 7SR
Balance Sheet,L2 Current Assets,10-12-21,Finished Processed Goods,Stock & Work In Progress,Novartis Pharmaceuticals Uk Ltd,92523776,"42,739.20 ",Pharmaceutical purchase,GU16 7SR
Balance Sheet,L2 Current Assets,17-12-21,Finished Processed Goods,Stock & Work In Progress,Novartis Pharmaceuticals Uk Ltd,92528289,"26,712.00 ",Pharmaceutical purchase,GU16 7SR
Balance Sheet,L2 Current Assets,24-12-21,Finished Processed Goods,Stock & Work In Progress,Novartis Pharmaceuticals Uk Ltd,92529519,"42,739.20 ",Pharmaceutical purchase,GU16 7SR
Balance Sheet,L2 Current Assets,24-12-21,Finished Processed Goods,Stock & Work In Progress,Novartis Pharmaceuticals Uk Ltd,92532817,"26,717.42 ",Pharmaceutical purchase,GU16 7SR
Balance Sheet,L2 Current Assets,24-12-21,Finished Processed Goods,Stock & Work In Progress,Novartis Pharmaceuticals Uk Ltd,92533502,"80,136.01 ",Pharmaceutical purchase,GU16 7SR
Balance Sheet,L2 Current Assets,24-12-21,Finished Processed Goods,Stock & Work In Progress,Novartis Pharmaceuticals Uk Ltd,92534130,"42,739.20 ",Pharmaceutical purchase,GU16 7SR
CHS Estates,L2 Estates,10-12-21,Med Surg Eqpt Mtce Contracts,Management Estates,Optima Medical Ltd,24113,"27,718.52 ",Gold Comprehensive & Gold Best Efforts Maintenance for Optima Xltek & Keypoint systems.Agreement Commencing - 4th October 2021 - 3rd October 2022,GU2 7AA
CHS Estates,L2 Estates,10-12-21,Electricity,Estates Operations,Opus Energy Ltd,41256175,"100,584.40 ",Mains electricity for HRI,"YO8 8PH	"
CHS Estates,L2 Estates,29-12-21,Electricity,Estates Operations,Opus Energy Ltd,41370155,"95,731.74 ",Mains electricity for HRI,"YO8 8PH	"
Corporate Services,Sevice Performance,24-12-21,Rent,Properties,Pennine Property Partnership Llp,SI0000012,"227,979.60 ",Acre Mill outpatients Rent - 25/12/2021 - 24/03/2022,S11 9PD
Corporate Services,Sevice Performance,24-12-21,Contract : Other External,Properties,Pennine Property Partnership Llp,SI0000013,"316,528.80 ",Acre Mill outpatients Recharge of Service Charge April - December 2021 ,S11 9PD
Balance Sheet,Fixed Assets,17-12-21,Additions - Assets Under Construction,Capital (Corporate),Philips Electronics Uk Ltd,948102377,"27,092.69 ",HRI - MRI - QUOTE FOR RAMP DOWN  RAMP UP AND RAMP KIT TO FACILITATE THE EXTENTION OF THE QUENCH PIPE TO THE MRI TO FACILITATE ENABLING WORKS FOR Emergency Department AS PER QUOTE,GU2 8XG
Surgery & Anaesthetics,Surgical Divisional Support,10-12-21,Healthcare From Commercial Sector,Independent Sector,Pioneer Healthcare Ltd,3078,"39,532.11 ",Insourcing of Clinical Support Services,S10 5UB
Surgery & Anaesthetics,Surgical Divisional Support,24-12-21,Healthcare From Commercial Sector,Independent Sector,Pioneer Healthcare Ltd,3201,"27,681.00 ",Insourcing of Clinical Support Services,S10 5UB
Surgery & Anaesthetics,Surgical Divisional Support,24-12-21,Healthcare From Commercial Sector,Independent Sector,Pioneer Healthcare Ltd,3205,"72,409.18 ",Insourcing of Clinical Support Services,S10 5UB
Surgery & Anaesthetics,Surgical Divisional Support,24-12-21,Healthcare From Commercial Sector,Independent Sector,Pioneer Healthcare Ltd,3206,"69,574.00 ",Insourcing of Clinical Support Services,S10 5UB
Surgery & Anaesthetics,Head & Neck,03-12-21,Agency Consultants,Ophthalmology,Promedical Personnel Ltd,18085,"24,959.27 ",Agency Consultant,CM14 5JR
Medical Division,Emergency Medicine,03-12-21,Agency Career/Staff Grades,A&E Medical Staff,Promedical Personnel Ltd,18085,"8,743.63 ",Agency Career/Staff Grade,CM14 5JR
Balance Sheet,L2 Current Assets,10-12-21,Finished Processed Goods,Stock & Work In Progress,Qualasept Ltd,SQS0111544,"26,460.00 ",Pharmaceutical purchase,SN13 9RG
Surgery & Anaesthetics,Surgical Divisional Support,03-12-21,Healthcare From Commercial Sector,Independent Sector,Remedy Healthcare Solutions Ltd,CHT015,"29,280.00 ",Insourced Endoscopy ,TN22 1QG
Surgery & Anaesthetics,Surgical Divisional Support,03-12-21,Healthcare From Commercial Sector,Independent Sector,Remedy Healthcare Solutions Ltd,CHT016,"27,180.00 ",Insourced Endoscopy ,TN22 1QG
Surgery & Anaesthetics,Surgical Divisional Support,03-12-21,Healthcare From Commercial Sector,Independent Sector,Remedy Healthcare Solutions Ltd,CHT017,"28,230.00 ",Insourced Endoscopy ,TN22 1QG
Surgery & Anaesthetics,Surgical Divisional Support,10-12-21,Healthcare From Commercial Sector,Independent Sector,Remedy Healthcare Solutions Ltd,CHT018,"27,180.00 ",Insourced Endoscopy ,TN22 1QG
Surgery & Anaesthetics,Surgical Divisional Support,17-12-21,Healthcare From Commercial Sector,Independent Sector,Remedy Healthcare Solutions Ltd,CHT019,"26,130.00 ",Insourced Endoscopy ,TN22 1QG
Balance Sheet,L2 Current Assets,24-12-21,Finished Processed Goods,Stock & Work In Progress,Roche Products Ltd,1322215800,"44,927.64 ",Pharmaceutical purchase,AL7 1TW
Balance Sheet,L2 Current Assets,24-12-21,Finished Processed Goods,Stock & Work In Progress,Roche Products Ltd,1322218454,"37,818.84 ",Pharmaceutical purchase,AL7 1TW
Families & Specialist Services,Radiology,10-12-21,Contractual Clinical Services,Rad General,Sg Radiology & Associates Ltd,SI-2533,"36,960.00 ",MRI MOBILE VAN ,WF1 3QQ
Families & Specialist Services,Pathology,03-12-21,Laboratory Chemicals,Path Chemical Pathology,Siemens Healthcare Diagnostics Ltd,114313185,"144,677.21 ",Laboratory managed service contract -,GU16 8QD
Balance Sheet,Fixed Assets,17-12-21,Additions - Assets Under Construction,Capital (Ops & Facs),Socamel Uk Ltd,1FU0067,"27,545.55",MULTISERV SENIOR OVEN/FRIDGE TROLLEY (CODE No 4800005)  AS PER ATTACHED QUOTE,SN11 9PT
Balance Sheet,Fixed Assets,17-12-21,Additions - Assets Under Construction,Capital (Ops & Facs),Socamel Uk Ltd,1FU0067,"1,864.55",TOP SHELF (CODE No 4800011) FOR MULTISERVE TROLLEY AS PER ATTACHED QUOTE,SN11 9PT
Balance Sheet,Fixed Assets,17-12-21,Additions - Assets Under Construction,Capital (Ops & Facs),Socamel Uk Ltd,1FU0067,514.35,HOT/HOT COUNTERTOP (CODE No 4800034) FOR MULTISERVE TROLLEY AS PER ATTACHED QUOTE,SN11 9PT
Balance Sheet,Fixed Assets,17-12-21,Additions - Assets Under Construction,Capital (Ops & Facs),Socamel Uk Ltd,1FU0067,558.60,8 LEVEL RACK (CODE No 4800073) FOR MULTISERV TROLLEY AS PER ATTACHED QUOTE,SN11 9PT
Balance Sheet,Fixed Assets,17-12-21,Additions - Assets Under Construction,Capital (Ops & Facs),Socamel Uk Ltd,1FU0067,628.80,STAINLESS STEEL GRID (CODE No 4800066) FOR MULTISERV TROLLEY AS PER ATTACHED QUOTE,SN11 9PT
Balance Sheet,Fixed Assets,17-12-21,Additions - Assets Under Construction,Capital (Ops & Facs),Socamel Uk Ltd,1FU0067,262.30,DETACHABLE FOOD PROBE (CODE No 4800067) FOR MULTISERV TROLLEY AS PER ATTACHED QUOTE,SN11 9PT
Balance Sheet,Fixed Assets,17-12-21,Additions - Assets Under Construction,Capital (Ops & Facs),Socamel Uk Ltd,1FU0067,"1,296.58",I-SERV VISION PC (CODE No 4935002) FOR MULTISERV TROLLEY AS PER ATTACHED QUOTE,SN11 9PT
Balance Sheet,Fixed Assets,17-12-21,Additions - Assets Under Construction,Capital (Ops & Facs),Socamel Uk Ltd,1FU0067,"6,480.60",EXTENDED WARRANTIES (CODE No 70000014) FOR MULTISERV TROLLEYS,SN11 9PT
Balance Sheet,Fixed Assets,17-12-21,Additions - Assets Under Construction,Capital (Ops & Facs),Socamel Uk Ltd,1FU0067,"1,800.00",ARTWORK FOR MULTISERV TROLLIES AS PER ATTACHED QUOTE,SN11 9PT
Corporate Services,Quality,24-12-21,Computer Software / License  Fees,Quality,Softcat Plc,INV03253907,"367,028.40 ",NURSING & MEDICAL SOFTWARE FEES  Year 1 1/11/21- 31/10/22,SL7 1TB
CHS Estates,L2 Estates,24-12-21,Clinical Waste,Estates Operations,Srcl Ltd,0001658672,"12,320.63 ",provision of clinical waste collection service at Calderdale Royal Hospital.,LS10  2LF
CHS Estates,L2 Estates,24-12-21,Clinical Waste,Estates Operations,Srcl Ltd,0001658672,"13,422.62 ",provision of clinical waste collection service at Huddersfield Royal Infirmary ,LS10  2LF
Families & Specialist Services,Radiology,03-12-21,Contractual Clinical Services,Rad General,Telemedicine Clinic Ltd,20210453,"100,356.50 ",Outsourced reporting ,B3 2RT
Recharges,Recharges,24-12-21,Healthcare From Foundation Trusts,Recharges,The Leeds Teaching Hospitals NHS Trust,1410180507,"245,293.85 ",Various services provided by agreement as per West Yorkshire Association of Acute Trusts agreed methodology,LS9 7TF
Recharges,Recharges,17-12-21,Healthcare From NHS Trusts,Recharges,The Leeds Teaching Hospitals NHS Trust,1410181724,"288,075.65 ",Various services provided by agreement as per West Yorkshire Association of Acute Trusts agreed methodology,LS9 7TF
Medical Division,Emergency Medicine,10-12-21,Agency Career/Staff Grades,A&E Medical Staff,Total Assist Recruitment Ltd,F181121B,"5,760.00 ",Medical Staff,RM1 3PJ
Families & Specialist Services,Womens,10-12-21,Agency Specialty Registrars,Medical Staff (Womens),Total Assist Recruitment Ltd,F181121B,"1,304.84 ",Medical Staff,RM1 3PJ
Medical Division,Emergency Medicine,10-12-21,Agency SHO'S and HO'S,A&E Medical Staff,Total Assist Recruitment Ltd,F181121B,"2,304.00 ",Medical Staff,RM1 3PJ
Families & Specialist Services,Childrens,10-12-21,Agency Consultants,Medical Staff (Paeds),Total Assist Recruitment Ltd,F181121B,"16,008.00 ",Medical Staff,RM1 3PJ
Balance Sheet,L2 Current Assets,24-12-21,Other Debtors < One Year,Other Debtors,Tuskerdirect Ltd,53703,"95,379.76 ",Salary Sacrifice cars,WD18 8YF
CHS Estates,L2 Estates,17-12-21,Computer Software / License  Fees,Management Estates,Varian Medical Systems Uk Ltd,602208027,"29,072.40 ",Software support agreement for Aria Medical Oncology software. For the contract period (year 3 of 3): 1 November 2021 - 31 October 2022.,RH10 9RG
CHS Estates,L2 Estates,03-12-21,Insurance Costs,Management Estates,Willis Ltd,11173GP21,"191,089.17 ",COMBINED LIABILITY INSURANCE - 01.09.21 - 31.08.22 ,EC3M 7DQ
